fUSD/lending_fUSD_20240214
["ID","MTS","AMOUNT","RATE_DAILY","PERIOD"]
[314024300,1707924679942,-150.0,0.00043419,2]
[314024301,1707924679951,-200.0,0.00043449,20]
[314024302,1707924679961,-1500.0,0.00043449,2]
[314024303,1707924679970,-21984.11881259,0.0004347,120]
[314024304,1707924679980,-168.0,0.00043484,31]
[314024305,1707924679989,-150.0,0.00043492,2]
[314024306,1707924679998,-300.0,0.00043571,2]
[314024307,1707924680008,-200.0,0.00043583,10]
[314024308,1707924680018,-1605.6405,0.00043616,5]
[314024309,1707924680027,-2000.0,0.00043616,5]
[314024310,1707924680037,-360.0,0.00043616,12]
[314024311,1707924680046,-150.0,0.00043673,2]
[314024312,1707924680056,-1000.0,0.00043677,2]
[314024313,1707924680065,-152.94099915,0.00043689,20]
[314024314,1707924680074,-299.999999,0.000437,15]
[314024315,1707924680084,-410.10203,0.00043735,20]
[314024316,1707924680093,-410.10203,0.00043735,20]
[314024317,1707924680103,-300.0,0.00043738,2]
[314024318,1707924680112,-65303.4341,0.0004379,7]
[314024319,1707924680121,-3315.42078673,0.00043799,2]
[314024320,1707924680131,-200.0,0.000438,18]
[314024321,1707924680140,-200.0,0.000438,19]
[314024322,1707924680149,-970.0,0.000438,49]
[314024323,1707924680160,-1500.0,0.000438,2]
[314024324,1707924680170,-1244.75430601,0.000438,2]
[314024325,1707924680180,-150.0,0.00043819,2]
[314024326,1707924680189,-342.95,0.00043819,2]
[314024327,1707924680198,-460.76,0.00043819,2]
[314024328,1707924680208,-422.25,0.00043819,2]
[314024329,1707924680217,-418.61,0.00043819,2]
[314024330,1707924680226,-422.25,0.00043819,2]
[314024331,1707924680235,-416.07,0.00043819,2]
[314024332,1707924680244,-418.61,0.00043819,2]
[314024333,1707924680254,-417.54,0.00043819,2]
[314024334,1707924680264,-411.76,0.00043819,2]
[314024335,1707924680274,-836.74,0.00043819,2]
[314024336,1707924680283,-411.76,0.00043819,2]
[314024337,1707924680293,-411.76,0.00043819,2]
[314024338,1707924680303,-411.76,0.00043819,2]
[314024339,1707924680313,-411.76,0.00043819,2]
[314024340,1707924680324,-411.76,0.00043819,2]
[314024341,1707924680334,-411.76,0.00043819,2]
[314024342,1707924680343,-411.76,0.00043819,2]
[314024343,1707924680354,-411.76,0.00043819,2]
[314024344,1707924680364,-411.76,0.00043819,2]
[314024345,1707924680374,-411.76,0.00043819,2]
[314024346,1707924680383,-411.76,0.00043819,2]
[314024347,1707924680394,-411.76,0.00043819,2]
[314024348,1707924680404,-2110.0,0.00043835,15]
[314024349,1707924680415,-1250.0,0.00043835,3]
[314024350,1707924680425,-3000.0,0.00043835,120]
[314024351,1707924680435,-3199.65,0.00043835,20]
[314024352,1707924680445,-3199.65,0.00043835,20]
[314024353,1707924680454,-3199.65,0.00043835,20]
[314024354,1707924680463,-3199.65,0.00043835,20]
[314024355,1707924680473,-3199.65,0.00043835,20]
[314024356,1707924680483,-3199.65,0.00043835,20]
[314024357,1707924680493,-3199.65,0.00043835,20]
[314024358,1707924680503,-3199.65,0.00043835,20]
[314024359,1707924680512,-3199.65,0.00043835,20]
[314024360,1707924680522,-3199.65,0.00043835,20]
[314024361,1707924680531,-3199.65,0.00043835,20]
[314024362,1707924680541,-3199.65,0.00043835,20]
[314024363,1707924680551,-3199.65,0.00043835,20]
[314024364,1707924680561,-3199.65,0.00043835,20]
[314024365,1707924680571,-3199.65,0.00043835,20]
[314024366,1707924680582,-3199.65,0.00043835,20]
[314024367,1707924680592,-3199.65,0.00043835,20]
[314024368,1707924680602,-3199.65,0.00043835,20]
[314024369,1707924680611,-3199.65,0.00043835,20]
[314024370,1707924680621,-3199.65,0.00043835,20]
[314024371,1707924680631,-3199.65,0.00043835,20]
[314024372,1707924680640,-3199.65,0.00043835,20]
[314024373,1707924680651,-3199.65,0.00043835,20]
[314024374,1707924680662,-3199.80988248,0.00043835,20]
[314024375,1707924680672,-16000.0,0.00043835,11]
[314024376,1707924680682,-152.14,0.00043836,2]
[314024377,1707924680692,-6424.91,0.00043836,15]
[314024378,1707924680702,-8229.82,0.00043836,2]
[314024379,1707924680713,-40548.1664576,0.0004384,2]
[314024380,1707924680723,-1161.259061,0.0004384,2]
[314024381,1707924680733,-2067.3620233,0.0004384,2]
[314024382,1707924680745,-211.62,0.00043851,2]
[314024383,1707924680755,-150.0,0.00043851,2]
[314024384,1707924680765,-418.61,0.00043851,2]
[314024385,1707924680774,-150.0,0.00043851,2]
[314024386,1707924680784,-305.62,0.00043851,2]
[314024387,1707924680795,-421.94,0.00043851,2]
[314024388,1707924680804,-712.88,0.00043851,2]
[314024389,1707924680814,-300.0,0.00043851,2]
[314024390,1707924680823,-320.46,0.00043851,2]
[314024391,1707924680833,-150.0,0.00043851,2]
[314024392,1707924680843,-150.0,0.00043851,2]
[314024393,1707924680853,-150.0,0.00043851,2]
[314024394,1707924680862,-418.61,0.00043851,2]
[314024395,1707924680871,-418.61,0.00043851,2]
[314024396,1707924680881,-150.0,0.00043851,2]
[314024397,1707924680891,-150.0,0.00043851,2]
[314024398,1707924680901,-150.0,0.00043851,2]
[314024399,1707924680914,-418.61,0.00043851,2]
[314024400,1707924680924,-418.61,0.00043851,2]
[314024401,1707924680933,-425.67,0.00043851,2]
[314024402,1707924680943,-35319.0520517,0.0004387,2]
[314024403,1707924680953,-1227.6167216,0.0004387,2]
[314024404,1707924680963,-1293.9743822,0.0004387,2]
[314024405,1707924680973,-1360.3320429,0.0004387,2]
[314024406,1707924680982,-1426.6897035,0.0004387,2]
[314024407,1707924680992,-1493.0473641,0.0004387,2]
[314024408,1707924681001,-2185.4969961,0.0004387,2]
[314024409,1707924681011,-2303.6319689,0.0004387,2]
[314024410,1707924681020,-2421.7669416,0.0004387,2]
[314024411,1707924681029,-2539.9019144,0.0004387,2]
[314024412,1707924681038,-2658.0368871,0.0004387,2]
[314024413,1707924681049,-340331.84109544,0.000439,2]
[314024414,1707924681058,-412.44,0.000439,7]
[314024415,1707924681068,-331.22,0.000439,7]
[314024416,1707924681078,-500.0,0.000439,7]
[314024417,1707924681087,-2223.56862341,0.000439,2]
[314024418,1707924681096,-301.47612531,0.000439,2]
[314024419,1707924681106,-1308.10345959,0.00043929,11]
[314024420,1707924681116,-151.0214,0.00043948,19]
[314024421,1707924681126,-30089.9376458,0.0004397,2]
[314024422,1707924681135,-24860.8232399,0.0004397,2]
[314024423,1707924681144,-19631.708834,0.0004397,2]
[314024424,1707924681154,-14402.5944281,0.0004397,2]
[314024425,1707924681165,-3000.0,0.00043972,120]
[314024426,1707924681174,-200.0,0.00043987,8]
[314024427,1707924681186,-500.0,0.0004399,7]
[314024428,1707924681195,-100000.0,0.00044,33]
[314024429,1707924681205,-669.0,0.00044,2]
[314024430,1707924681215,-505.588,0.00044,7]
[314024431,1707924681225,-8678.32491118,0.00044,30]
[314024432,1707924681235,-1008.28051742,0.00044,60]
[314024433,1707924681244,-102681.83096795,0.00044,32]
[314024434,1707924681254,-12625.0,0.00044,2]
[314024435,1707924681264,-151176.66313648,0.00044,8]
[314024436,1707924681275,-1014.0,0.00044,30]
[314024437,1707924681285,-109647.24886163,0.00044,4]
[314024438,1707924681294,-800.0,0.00044,7]
[314024439,1707924681303,-3387.87584498,0.00044,4]
[314024440,1707924681313,-971.35360888,0.00044,120]
[314024441,1707924681325,-300.0,0.00044,43]
[314024442,1707924681334,-656.263,0.00044,3]
[314024443,1707924681346,-4576.14349563,0.00044,120]
[314024444,1707924681357,-10000.0,0.00044,120]
[314024445,1707924681367,-10000.0,0.00044,120]
[314024446,1707924681377,-200.0,0.00044,57]
[314024447,1707924681386,-294864.66524921,0.00044,30]
[314024448,1707924681395,-251.0,0.00044029,28]
[314024449,1707924681408,-200.0,0.00044039,10]
[314024450,1707924681418,-410.10203,0.0004404,21]
[314024451,1707924681428,-200.0,0.000441,2]
[314024452,1707924681437,-200.0,0.000441,2]
[314024453,1707924681446,-500.0,0.00044109,11]
[314024454,1707924681456,-500.0,0.00044109,11]
[314024455,1707924681465,-500.0,0.00044109,11]
[314024456,1707924681474,-500.0,0.00044109,30]
[314024457,1707924681484,-3000.0,0.00044109,120]
[314024458,1707924681494,-151.0214,0.00044148,22]
[314024459,1707924681503,-1241.65133893,0.00044173,5]
[314024460,1707924681513,-150.0,0.0004422,120]
[314024461,1707924681522,-658.10525503,0.00044246,120]
[314024462,1707924681531,-16773.29317981,0.00044251,6]
[314024463,1707924681540,-17571.52695127,0.00044251,6]
[314024464,1707924681551,-200.0,0.000443,20]
[314024465,1707924681560,-2000.0,0.00044312,120]
[314024466,1707924681569,-2000.0,0.00044312,120]
[314024467,1707924681726,-2000.0,0.00044312,120]
[314024468,1707924681741,-457.31482914,0.00044312,120]
[314024469,1707924681750,-500.0,0.00044324,2]
[314024470,1707924681759,-165.26,0.00044329,30]
[314024471,1707924681769,-2110.0,0.00044335,15]
[314024472,1707924681779,-1188723.05216674,0.0004435,4]
[314024473,1707924681987,-14979.43354112,0.0004435,4]
[314024474,1707924681999,-586307.47068441,0.0004435,4]
[314024475,1707924682016,-150.0,0.00036644,2]
[314024476,1707924682025,-574.41329783,0.0004435,4]
[314024477,1707924682036,-3252.62262882,0.0004435,4]
[314024478,1707924682049,-1986.87131802,0.0004435,4]
[314024479,1707924682061,-2978.20200502,0.0004435,4]
[314024480,1707924682074,-4952.42311856,0.0004435,4]
[314024481,1707924682087,-3371.64199026,0.0004435,4]
[314024482,1707924682104,-513.37,0.00037808,2]
[314024483,1707924682113,-4463.04547128,0.0004435,4]
[314024484,1707924682125,-2940.1841792,0.0004435,4]
[314024485,1707924682137,-10327.46785243,0.0004435,4]
[314024486,1707924682439,-510.30003895,0.0003469,2]
[314024487,1707924682449,-505.24709432,0.00035095,2]
[314024488,1707924682458,-505.24709432,0.000355,2]
[314024489,1707924682467,-171.52,0.00036213,120]
[314024490,1707924682476,-171.52,0.0003667,120]
[314024491,1707924682486,-553.03,0.00036712,2]
[314024492,1707924682495,-500.0,0.00036712,2]
[314024493,1707924682505,-500.0,0.00036712,2]
[314024494,1707924682514,-584.37,0.00036712,2]
[314024495,1707924682524,-500.0,0.00036986,2]
[314024496,1707924682532,-945.48,0.00036986,2]
[314024497,1707924682542,-647.23,0.00036986,2]
[314024498,1707924682551,-171.52,0.00037126,120]
[314024499,1707924682560,-272.10084856,0.00037192,2]
[314024500,1707924682570,-153.23,0.0003726,2]
[314024501,1707924682579,-513.37,0.00038082,2]
[314024502,1707924682589,-513.37,0.00038356,7]
[314024503,1707924682598,-513.37,0.0003863,7]
[314024504,1707924682608,-513.37,0.00038904,7]
[314024505,1707924682617,-513.37,0.00039178,7]
[314024506,1707924682626,-513.37,0.00039452,7]
[314024507,1707924682635,-513.37,0.00039726,7]
[314024508,1707924682645,-513.37,0.0004,7]
[314024509,1707924682654,-513.37,0.00040273,7]
[314024510,1707924682665,-513.37,0.00040547,7]
[314024511,1707924682674,-926.22,0.00040821,7]
[314024512,1707924682684,-513.37,0.00040821,7]
[314024513,1707924682694,-926.22,0.00041095,7]
[314024514,1707924682703,-513.37,0.00041095,7]
[314024515,1707924682712,-926.22,0.00041369,7]
[314024516,1707924682721,-926.22,0.00041643,7]
[314024517,1707924682731,-926.22,0.00041917,7]
[314024518,1707924682740,-926.22,0.00042191,7]
[314024519,1707924682749,-926.22,0.00042465,7]
[314024520,1707924682758,-926.22,0.00042739,7]
[314024521,1707924682768,-926.31000905,0.00043013,7]
[314024522,1707924682777,-1934.15094869,0.0004435,4]
[314024523,1707924682955,-500.0,0.00036986,2]
[314024524,1707924682965,-171.52,0.00037583,120]
[314024525,1707924682974,-1827.64971345,0.0004435,4]
[314024526,1707924682986,-567.61890201,0.0004435,4]
[314024527,1707924682998,-3289.09678362,0.0004435,4]
[314024528,1707924683853,-12718.12122674,0.0004435,4]
[314024529,1707924684068,-21.91978008,0.0004435,4]
[314024530,1707924684081,-815.93806979,0.0004435,4]
[314024531,1707924684141,-5166.49193599,0.0004435,4]
[314024532,1707924684152,-25139.67319691,0.0004435,4]
[314024533,1707924684165,-505.40595551,0.0004435,4]
[314024534,1707924684182,-377.78626633,0.00041369,7]
[314024535,1707924684227,-0.00355217,0.00041369,7]
[314024536,1707924684239,-135.5801815,0.00041369,7]
[314024537,1707924684248,-55796.08962052,0.0004435,4]
[314024538,1707924684260,-2254.9442776,0.0004435,4]
[314024539,1707924684271,-6647.02608696,0.0004435,4]
[314024540,1707924684282,-274.49,0.0004435,4]
[314024547,1707925350853,-176.13371295,0.00024333,2]
[314024548,1707925350875,-4652.72764516,0.00024432,2]
[314024549,1707925350900,-150.0,0.00024433,2]
[314024550,1707925350924,-338.89802293,0.00024433,2]
[314024551,1707925350947,-155.0,0.00024433,2]
[314024552,1707925350971,-93527.24061896,0.00024433,2]
[314024553,1707925417624,-436.19062659,0.00023941,2]
[314024554,1707925417645,-258.2382872,0.00023942,2]
[314024555,1707925417666,-3646.45275042,0.00024429,2]
[314024556,1707925417686,-689.09385357,0.0002443,2]
[314024557,1707925417708,-409.89550879,0.0002443,2]
[314024558,1707925417728,-267.21092104,0.00024431,2]
[314024559,1707925417749,-303.81871591,0.00024431,2]
[314024560,1707925417770,-516.56412981,0.00024431,2]
[314024561,1707925417790,-611.74573994,0.00024432,2]
[314024562,1707925417812,-3053.4187002,0.00024432,2]
[314024563,1707925417833,-338.89802293,0.00024432,2]
[314024564,1707925417853,-39468.4727436,0.00024432,2]
[314024565,1707925453870,-43302.80546773,0.00024427,2]
[314024566,1707925453890,-4869.80400071,0.00024428,2]
[314024567,1707925453910,-1912.95752079,0.00024428,2]
[314024568,1707925453929,-3646.45275042,0.00024431,2]
[314024569,1707925453950,-432.00453614,0.00024431,2]
[314024570,1707925453969,-689.09385357,0.00024431,2]
[314024571,1707925453990,-935.064,0.00024431,2]
[314024572,1707925454010,-19211.81787064,0.00024433,2]
[314024573,1707925488740,174.4,0.00020157,2]
[314024574,1707925525507,870.44081465,0.00020157,2]
[314024575,1707925541503,775.2820771,0.00020157,2]
[314024576,1707925633131,-156.31655214,0.00024424,2]
[314024577,1707925633151,-689.09385357,0.00024425,2]
[314024578,1707925633170,-1912.95752079,0.00024425,2]
[314024579,1707925633189,-623.376,0.00024426,2]
[314024580,1707925633208,-3756.06157569,0.00024426,2]
[314024585,1707925751275,-1699.83,0.00022966,2]
[314024586,1707925751297,-231.88397494,0.0002423,2]
[314024587,1707925751317,-519.48,0.00024327,2]
[314024588,1707925751338,-1567.86847976,0.00024328,2]
[314024589,1707925751365,-345.08904103,0.00024328,2]
[314024590,1707925751386,-981.61370118,0.00024329,2]
[314024591,1707925751444,-2984.2861,0.0002433,2]
[314024592,1707925751466,-150.0,0.00024426,2]
[314024593,1707925751486,-43302.80546773,0.00024427,2]
[314024594,1707925751506,-156.85014946,0.00024428,2]
[314024595,1707925751527,-774.80039178,0.00024428,2]
[314024596,1707925751547,-4869.80400071,0.00024428,2]
[314024597,1707925751568,-58148.94282551,0.0002443,2]
[314024598,1707925751590,-294.14830976,0.00024431,2]
[314024599,1707925751614,-49949.98001284,0.00024431,2]
[314024600,1707925754103,-152.09,0.0002384,2]
[314024601,1707925754122,-152.09,0.00024138,2]
[314024602,1707925754150,-2080.81207285,0.00024431,2]
[314024603,1707925768103,-270.64908,0.0002443,2]
[314024604,1707925768123,-31209.5339477,0.0002443,2]
[314024614,1707925831521,-270.64908,0.00024429,2]
[314024615,1707925831531,-510.99426908,0.0002443,2]
[314024616,1707925831544,-536.24648216,0.0002443,2]
[314024617,1707925831556,-1304.606144,0.0002443,2]
[314024618,1707925831582,-366.374455,0.0002443,2]
[314024623,1707925831887,-319.28,0.0002443,2]
[314024625,1707925831900,-205.98446401,0.0002443,2]
[314024627,1707925831910,-116.66368673,0.00024431,2]
[314024628,1707925831921,-43877.78138191,0.00024431,2]
[314024629,1707925831930,-497.48281646,0.00024432,2]
[314024630,1707925831940,-10023.76871927,0.00024434,2]
[314024631,1707925831949,-152.09,0.00024436,2]
[314024632,1707925831958,-150.0,0.00024475,2]
[314024633,1707925831967,-3333.45398373,0.00024526,2]
[314024634,1707925831976,-1113.29,0.00024526,2]
[314024635,1707925831985,-150.99,0.00024526,2]
[314024636,1707925831994,-221.60779423,0.00024534,2]
[314024637,1707925832004,-475.81552691,0.00024534,2]
[314024638,1707925832013,-656.99192267,0.00024534,2]
[314024639,1707925832022,-499.76012545,0.00024534,2]
[314024640,1707925832032,-1066.76028514,0.00024535,2]
[314024641,1707925832040,-300.0,0.00024551,2]
[314024642,1707925832050,-1744.82,0.00024551,2]
[314024643,1707925832059,-150.99,0.00024551,2]
[314024644,1707925832068,-1912.95752079,0.00024599,2]
[314024645,1707925832077,-19252.21979484,0.000246,2]
[314024646,1707925832086,-499.99,0.000246,2]
[314024647,1707925832095,-152.09,0.00024734,2]
[314024648,1707925832104,-150.0,0.00024871,2]
[314024649,1707925832113,-231.88397494,0.00024882,2]
[314024650,1707925832122,-223.97648206,0.00024918,2]
[314024651,1707925832147,-346.13550682,0.00024918,2]
[314024652,1707925832159,-72.76666782,0.0002494,2]
[314024653,1707925832170,-127.23333218,0.0002494,2]
[314024654,1707925832179,-158.02,0.00024953,2]
[314024655,1707925832188,-376.17720951,0.00024953,2]
[314024656,1707925832199,-373.82279049,0.00024953,2]
[314024657,1707925832209,-1082.17913698,0.00024971,2]
[314024658,1707925832220,-2164.07086302,0.00024971,2]
[314024659,1707925832230,-1680.45029673,0.00024972,2]
[314024660,1707925832241,-713.07366266,0.00024972,2]
[314024661,1707925832253,-311.47604061,0.00024972,2]
[314024662,1707925832262,-171.52,0.00024976,2]
[314024663,1707925832271,-4606.12,0.00024976,2]
[314024664,1707925832280,-2657.84271935,0.00025006,2]
[314024665,1707925832291,-289.10078218,0.00025006,2]
[314024666,1707925832320,-2576.65017363,0.00025006,2]
[314024667,1707925832331,-1109.28653054,0.00025006,2]
[314024668,1707925832421,-405.3818031,0.00025006,2]
[314024682,1707925837485,-337.81120895,0.00024429,2]
[314024683,1707925837498,-1575.14631184,0.00024429,2]
[314024684,1707925837509,-1025.1,0.00024855,2]
[314024685,1707925837519,-1925.6579912,0.00025006,2]
[314024686,1707925837530,-545.96,0.0002502,2]
[314024687,1707925837541,-4180.74,0.0002502,2]
[314024688,1707925837550,-500.0,0.00025026,2]
[314024689,1707925837560,-152.09,0.00025032,2]
[314024690,1707925837570,-500.0,0.00025044,2]
[314024691,1707925837580,-200.0,0.00025048,2]
[314024692,1707925837590,-500.0,0.00025053,2]
[314024693,1707925837599,-281.08,0.0002507,2]
[314024694,1707925837609,-333.37569696,0.0002507,2]
[314024695,1707925837641,-166.62430304,0.0002507,2]
[314024696,1707925837650,-506.08547538,0.00025074,2]
[314024697,1707925837671,-673.79279193,0.00025074,2]
[314024698,1707925837704,-7350.9428607,0.00025074,2]
[314024699,1707925837788,-7784.04,0.00025074,2]
[314024700,1707925837800,-663.94887199,0.00025074,2]
[314024701,1707925837809,-250.0,0.00025172,2]
[314024702,1707925837819,-231.51,0.00025197,2]
[314024703,1707925837828,-23900.0,0.00025222,2]
[314024704,1707925837838,-200.0,0.00025225,2]
[314024705,1707925837847,-1699.83,0.0002523,2]
[314024706,1707925837856,-155.0,0.00025294,2]
[314024708,1707925837865,-152.09,0.0002533,2]
[314024710,1707925837874,-250.0,0.00025339,2]
[314024712,1707925837884,-536.26,0.00025362,2]
[314024714,1707925837892,-171.8,0.00025418,2]
[314024716,1707925837906,-231.88397494,0.00025533,2]
[314024717,1707925837916,-156.95,0.00025552,2]
[314024720,1707925837927,-569.67,0.00025563,2]
[314024721,1707925837937,-152.09,0.00025628,2]
[314024723,1707925837948,-156.95,0.000257,2]
[314024725,1707925837957,-167.58,0.00025827,2]
[314024727,1707925837966,-156.95,0.00025848,2]
[314024729,1707925837975,-152.09,0.00025926,2]
[314024731,1707925837984,-156.95,0.00025996,2]
[314024733,1707925837993,-156.95,0.00026144,2]
[314024735,1707925838003,-2000.0,0.00026147,2]
[314024737,1707925838013,-231.88397494,0.00026185,2]
[314024739,1707925838023,-152.09,0.00026224,2]
[314024741,1707925838032,-171.92,0.0002626,2]
[314024743,1707925838042,-156.95,0.00026292,2]
[314024745,1707925838051,-150.0,0.00026305,2]
[314024746,1707925838060,-171.52,0.00026346,2]
[314024747,1707925838069,-250.0,0.00026384,2]
[314024748,1707925838078,-156.95,0.0002644,2]
[314024749,1707925838086,-156.95,0.00026588,2]
[314024750,1707925838096,-8963.92,0.00026649,2]
[314024751,1707925838105,-156.95,0.00026736,2]
[314024752,1707925838114,-231.88397494,0.00026837,2]
[314024753,1707925838123,-210.0,0.00026869,2]
[314024754,1707925838132,-156.95,0.00026884,2]
[314024755,1707925838141,-154.12,0.00027424,2]
[314024756,1707925838150,-231.88397494,0.00027488,2]
[314024757,1707925838163,-1699.83,0.00027494,2]
[314024758,1707925838172,-171.92,0.00027573,2]
[314024759,1707925838182,-171.52,0.00027716,2]
[314024760,1707925838191,-7518.2684,0.000279,2]
[314024761,1707925838200,-155.0,0.00027998,2]
[314024762,1707925838209,-3526.11688769,0.00027999,2]
[314024763,1707925838218,-375.90053585,0.00027999,2]
[314024764,1707925838227,-172026.49899771,0.00028,2]
[314024765,1707925838236,-969.27668517,0.00028,2]
[314024766,1707925838247,-150.0,0.000281,2]
[314024767,1707925838256,-231.88397494,0.0002814,2]
[314024768,1707925838265,-8963.92,0.00028293,2]
[314024769,1707925838275,-810.3,0.00028355,2]
[314024770,1707925838284,-810.3,0.00028504,2]
[314024771,1707925838293,-810.3,0.00028653,2]
[314024772,1707925838302,-231.88397494,0.00028792,2]
[314024773,1707925838311,-810.3,0.00028803,2]
[314024774,1707925838321,-171.92,0.00028886,2]
[314024775,1707925838332,-810.3,0.00028952,2]
[314024776,1707925838343,-177.3,0.00029,2]
[314024777,1707925838353,-810.3,0.00029101,2]
[314024778,1707925838364,-810.3,0.0002925,2]
[314024779,1707925838374,-810.3,0.00029399,2]
[314024780,1707925838383,-231.88397494,0.00029443,2]
[314024781,1707925838393,-177.3,0.00029548,2]
[314024782,1707925838404,-810.3,0.00029549,2]
[314024783,1707925838413,-283.0,0.00029555,2]
[314024784,1707925838423,-810.3,0.00029698,2]
[314024785,1707925838434,-1699.83,0.00029758,2]
[314024786,1707925838444,-375.6833,0.00029799,2]
[314024787,1707925838453,-163.2649409,0.00029811,2]
[314024788,1707925838463,-810.3,0.00029847,2]
[314024789,1707925838472,-8963.92,0.00029937,2]
[314024790,1707925838482,-810.3,0.00029996,2]
[314024791,1707925838491,-360.22491493,0.0003,2]
[314024792,1707925838500,-73392.57907739,0.0003,4]
[314024793,1707925838509,-155.0,0.0003,2]
[314024794,1707925838518,-500.0,0.0003,2]
[314024795,1707925838527,-2584.57,0.0003004,2]
[314024796,1707925838536,-231.88397494,0.00030095,2]
[314024797,1707925838545,-177.3,0.00030096,2]
[314024798,1707925838554,-151.32,0.00030137,2]
[314024799,1707925838563,-810.3,0.00030146,2]
[314024800,1707925838572,-171.92,0.00030199,2]
[314024801,1707925838581,-810.3,0.00030295,2]
[314024802,1707925838590,-810.3,0.00030444,2]
[314024803,1707925838600,-1828.07,0.00030477,5]
[314024804,1707925838609,-1817.01,0.00030477,5]
[314024805,1707925838621,-1805.02,0.00030477,5]
[314024806,1707925838631,-1794.8,0.00030544,5]
[314024807,1707925838641,-810.3,0.00030593,2]
[314024808,1707925838651,-177.3,0.00030644,2]
[314024809,1707925838663,-1820.8,0.00030657,5]
[314024810,1707925838673,-810.3,0.00030743,2]
[314024811,1707925838682,-231.88397494,0.00030747,2]
[314024812,1707925838693,-1835.72,0.00030846,5]
[314024813,1707925838703,-810.3,0.00030892,2]
[314024814,1707925838713,-810.3,0.00031041,2]
[314024815,1707925838723,-190.1123,0.00031161,2]
[314024816,1707925838732,-165.77928801,0.00031169,2]
[314024817,1707925838742,-1808.37,0.00031169,5]
[314024818,1707925838752,-810.3,0.0003119,2]
[314024819,1707925838761,-354.14,0.00031192,2]
[314024820,1707925838771,-1974.86666855,0.0003126,4]
[314024821,1707925838780,-10593.09979094,0.0003126,4]
[314024822,1707925838789,-526.41835171,0.0003126,4]
[314024823,1707925838799,-2915.68271263,0.0003126,4]
[314024824,1707925838809,-1592.09246113,0.00031262,2]
[314024825,1707925838818,-1256.25370781,0.00031262,4]
[314024826,1707925838828,-158.49674896,0.00031262,4]
[314024827,1707925838837,-1147.15292267,0.00031262,4]
[314024828,1707925838847,-370.34765471,0.00031263,4]
[314024829,1707925838856,-946.31124793,0.00031263,4]
[314024830,1707925838866,-519.5843072,0.00031267,4]
[314024831,1707925838876,-9973.65388574,0.00031269,7]
[314024832,1707925838885,-20207.93101757,0.00031269,7]
[314024833,1707925838895,-5051.98275439,0.00031269,7]
[314024834,1707925838905,-22040.134797,0.00031269,7]
[314024835,1707925838914,-1802.82,0.00031269,5]
[314024836,1707925838923,-158.81891053,0.00031309,2]
[314024837,1707925838933,-231.88397494,0.00031399,2]
[314024838,1707925838942,-171.92,0.00031512,2]
[314024839,1707925838952,-8963.92,0.00031581,2]
[314024840,1707925838961,-168.28,0.00031644,2]
[314024841,1707925838970,-180.0,0.00031644,2]
[314024842,1707925838979,-4677.98331638,0.000318,2]
[314024843,1707925838988,-1699.83,0.00032022,2]
[314024844,1707925838998,-231.88397494,0.0003205,2]
[314024845,1707925839007,-153.71,0.000326,2]
[314024846,1707925839016,-231.88397494,0.00032702,2]
[314024847,1707925839026,-165.82,0.00032841,2]
[314024848,1707925839035,-152.55,0.00032877,2]
[314024849,1707925839046,-4000.0,0.000329,2]
[314024850,1707925839055,-1500.0,0.000329,2]
[314024851,1707925839065,-151.12841015,0.00032968,2]
[314024852,1707925839074,-1712.17017489,0.00032978,4]
[314024853,1707925839083,-2557.38008581,0.00032978,4]
[314024854,1707925839092,-500.0,0.00032978,4]
[314024855,1707925839102,-767.80874563,0.00033,4]
[314024856,1707925839111,-1389.2953041,0.00033,2]